bitfinex-derivatives/quotes_ETHF0:USTF0_20250114
["timestamp","ask_amount","ask_price","bid_price","bid_amount"]
[1736848463425,3.51534,3252.4,3251.6,3.2078]
[1736848463623,3.2078,3252.4,3252.3,0.30755]
[1736848463825,3.2078,3252.8,3252.1,0.30756]
[1736848464126,3.2078,3252.8,3252.5,0.30752]
[1736848464436,6.56479552,3253.2,3251.9,3.2078]
[1736848464623,3.2078,3253.2,3251.9,3.2078]
[1736848464929,3.51523,3253.6,3253.1,0.30747]
[1736848465129,3.2078,3253.6,3252.7,3.2078]
[1736848465429,3.2078,3253.6,3253.3,0.30745]
[1736848465821,3.2078,3253.6,3252.7,3.2078]
[1736848466022,3.51518,3254.1,3253.7,0.30741]
[1736848466232,3.51518,3254.1,3253.1,3.2078]
[1736848466426,3.51518,3254.1,3253.7,0.30741]
[1736848466624,3.51514,3254.5,3253.9,0.30739]
[1736848467026,0.24363363,3254.0,3253.9,0.30739]
[1736848467226,0.3073,3254.9,3253.9,5.0]
[1736848467524,0.30731,3254.8,3254.3,3.51515]
[1736848467726,0.30732,3254.7,3254.3,3.51515]
[1736848468026,3.45749791,3255.0,3254.3,3.2078]
[1736848468232,0.24969791,3255.0,3254.7,0.30731]
[1736848468434,0.30728,3255.2,3254.7,0.30731]
[1736848468624,0.30728,3255.2,3254.8,40.8]
[1736848468824,1.2701,3255.5,3254.8,40.8]
[1736848469223,0.30725,3255.4,3254.9,0.3073]
[1736848469431,0.30725,3255.4,3255.0,0.30729]
[1736848469627,1.57735,3255.5,3255.0,0.30728]
[1736848469837,3.2078,3255.6,3254.8,40.8]
[1736848470126,4.5459,3256.0,3254.8,40.8]
[1736848470332,0.30724,3255.6,3255.2,0.30727]
[1736848470828,4.5459,3256.0,3254.8,42.1443]
[1736848471025,0.30722,3255.7,3255.3,0.30726]
[1736848471225,0.30722,3255.8,3255.4,0.30725]
[1736848471434,4.5459,3256.0,3255.4,0.30725]
[1736848471630,4.5459,3256.0,3255.2,3.2078]
[1736848471827,0.30722,3255.8,3255.4,0.30725]
[1736848472031,4.5459,3256.0,3255.2,3.2078]
[1736848472236,0.30722,3255.8,3255.3,0.30726]
[1736848472727,4.5459,3256.0,3255.2,3.2078]
[1736848472921,0.30726,3255.4,3255.2,3.2078]
[1736848473231,3.35699552,3255.4,3254.3,3.2078]
[1736848473540,0.30734,3254.5,3253.7,3.2078]
[1736848473832,3.35699552,3254.9,3253.8,40.8]
[1736848474030,0.30734,3254.5,3254.0,0.30738]
[1736848474234,4.4854,3255.0,3253.8,44.0078]
[1736848474833,0.30732,3254.7,3254.2,0.30736]
[1736848475128,1.2776,3255.0,3254.2,3.2078]
[1736848475332,0.30729,3255.1,3254.6,0.30732]
[1736848475532,0.30729,3255.1,3254.7,0.30731]
[1736848475834,3.2078,3255.5,3254.2,3.2078]
[1736848476032,0.30729,3255.0,3254.2,3.2078]
[1736848476232,3.2078,3255.5,3254.2,3.2078]
[1736848476627,3.2078,3255.5,3254.9,0.30729]
[1736848476839,1.2587,3255.6,3255.1,0.30728]
[1736848477133,0.30726,3255.4,3254.9,0.3073]
[1736848477332,4.4665,3255.6,3254.6,3.2078]
[1736848477723,3.35699552,3255.3,3254.6,3.2078]
[1736848478034,0.30736,3254.3,3253.8,40.8]
[1736848478331,3.2078,3254.7,3254.1,3.2078]
[1736848478534,3.2078,3255.1,3254.1,3.2078]
[1736848479035,0.30733,3254.6,3254.3,0.30735]
[1736848479426,0.30731,3254.8,3254.5,0.30733]
[1736848479628,0.30731,3254.9,3254.6,0.30732]
[1736848479831,0.30731,3254.8,3254.6,0.30732]
[1736848480029,0.30731,3254.8,3254.1,3.2078]
[1736848480030,0.30731,3254.8,3254.7,40.8]
[1736848480836,0.30741,3253.7,3253.6,3.2078]
[1736848481035,0.30745,3253.3,3253.2,3.2078]
[1736848481227,0.30745,3253.3,3253.2,40.8]
[1736848481934,0.30744,3253.4,3253.2,40.8]
[1736848482138,1.3203,3253.6,3253.2,40.8]
[1736848482337,0.30745,3253.4,3253.2,40.8]
[1736848482535,1.3203,3253.6,3253.3,3.2078]
[1736848482728,1.3203,3253.6,3253.4,0.30744]
[1736848482926,1.2682,3254.0,3253.3,3.2078]
[1736848483437,0.30744,3253.4,3253.2,40.8]
[1736848483639,2.03669,3254.0,3253.2,40.8]
[1736848483640,1.2682,3254.0,3253.2,40.8]
[1736848483937,0.3074,3253.9,3253.5,0.30743]
[1736848484334,0.3074,3253.9,3253.2,40.8]
[1736848484335,3.2078,3254.1,3253.4,3.2078]
[1736848484533,3.51518,3254.1,3253.7,0.30741]
[1736848484739,3.2078,3254.1,3253.8,0.3074]
[1736848484937,0.3074,3253.9,3253.6,0.30742]
[1736848485131,3.51518,3254.1,3253.5,0.30743]
[1736848485333,3.51518,3254.1,3253.7,0.3074]
[1736848485634,1.2918,3254.5,3253.5,3.2078]
[1736848485837,0.30737,3254.2,3253.9,0.30739]
[1736848486031,0.30736,3254.3,3254.0,0.30738]
[1736848486829,0.30736,3254.3,3253.6,1.3775]
[1736848486830,1.59914,3254.5,3254.2,0.30736]
[1736848487136,1.59914,3254.5,3254.1,40.8]
[1736848487137,1.59914,3254.5,3254.1,41.10737]
[1736848487333,0.30735,3254.4,3254.1,41.10737]
[1736848487637,0.30737,3254.2,3254.1,40.8]
[1736848488036,3.51517,3254.2,3254.1,40.8]
[1736848488741,11.56479552,3254.2,3253.1,0.30747]
[1736848488934,0.30745,3253.3,3253.0,3.2078]
[1736848489139,0.30747,3253.1,3253.0,3.2078]
[1736848489341,0.30747,3253.1,3253.0,44.0078]
[1736848489536,0.30747,3253.1,3253.0,40.8]
[1736848490726,3.2078,3253.4,3253.0,40.8]
[1736848490939,0.30747,3253.1,3253.0,40.8]
[1736848491732,3.2078,3253.4,3253.0,40.8]
[1736848491933,4.7228,3253.9,3253.1,0.30747]
[1736848492449,0.30745,3253.4,3253.1,0.30747]
[1736848492638,0.76853,3253.8,3253.0,40.8]
[1736848492839,2.556,3253.7,3253.0,40.8]
[1736848493145,0.30743,3253.6,3253.3,0.30745]
[1736848493443,2.556,3253.7,3253.0,40.8]
[1736848493645,0.30744,3253.5,3253.2,0.30746]
[1736848493843,2.556,3253.7,3253.0,40.8]
[1736848494442,0.30743,3253.6,3253.3,0.30745]
[1736848494640,2.86342,3253.7,3253.4,0.30744]
[1736848494944,3.2078,3253.9,3253.5,40.8]
[1736848495440,0.30742,3253.6,3253.5,40.8]
[1736848495936,2.6201,3254.3,3253.5,44.0078]
[1736848496142,0.30741,3253.8,3253.5,44.31523]
[1736848496335,0.30737,3254.2,3253.5,44.0078]
[1736848496535,0.30742,3253.6,3253.5,40.8]
[1736848500047,3.51522,3253.6,3253.5,40.8]
[1736848500243,0.30754,3252.4,3252.3,3.2078]
[1736848500547,0.30759,3251.9,3251.6,0.30761]
[1736848500743,0.30758,3252.0,3251.7,0.3076]
[1736848501139,0.30759,3251.9,3251.6,0.30761]
[1736848501439,0.30759,3251.9,3251.8,40.8]
[1736848502642,0.30765,3251.2,3250.9,0.30767]
[1736848503040,3.2078,3251.6,3251.1,40.8]
[1736848503236,0.30765,3251.3,3251.1,40.8]
[1736848503446,0.30765,3251.2,3251.1,40.8]
[1736848503641,0.30765,3251.2,3250.8,3.51548]
[1736848503843,0.30768,3250.9,3250.8,3.2078]
[1736848504237,0.30768,3250.9,3250.8,44.0078]
[1736848504442,0.30768,3250.9,3250.8,40.8]
[1736848504636,3.35699552,3250.9,3250.1,3.2078]
[1736848504840,0.30774,3250.2,3250.1,3.2078]
[1736848505248,0.30774,3250.2,3250.1,44.0078]
[1736848506243,0.30774,3250.2,3250.1,40.8]
[1736848507245,3.35699552,3250.4,3249.0,3.2098]
[1736848507555,0.30785,3249.1,3249.0,3.2098]
[1736848507850,0.30785,3249.1,3249.0,44.0098]
[1736848509348,0.3078,3249.6,3249.0,44.0098]
[1736848509547,0.30782,3249.5,3249.0,44.0098]
[1736848509743,3.35699552,3249.5,3249.0,40.802]
[1736848510049,0.30785,3249.1,3249.0,40.802]
[1736848510445,1.69725,3249.1,3249.0,40.802]
[1736848511950,6.3894,3249.1,3247.3,3.2078]
[1736848512155,3.2078,3248.3,3247.0,0.37963437]
[1736848512351,3.2078,3248.3,3247.3,3.2078]
[1736848512555,0.30796,3248.0,3247.4,0.30801]
[1736848513054,0.30793,3248.2,3247.9,40.8]
[1736848513248,3.2078,3248.3,3247.9,40.8]
[1736848514355,3.2078,3248.3,3248.0,0.30795]
[1736848514553,3.2078,3248.3,3247.9,40.8]
[1736848514854,3.2078,3248.3,3248.0,0.30795]
[1736848515253,3.51573,3248.3,3247.9,40.8]
[1736848515444,3.51573,3248.3,3247.9,41.10796]
[1736848515646,3.2078,3248.3,3247.9,40.8]
[1736848515847,3.2078,3248.3,3248.1,0.30794]
[1736848516245,3.2078,3248.3,3248.0,1.2651]
[1736848516246,0.30794,3248.2,3248.0,1.2651]
[1736848516449,3.51573,3248.3,3248.0,1.57305]
[1736848516646,3.2078,3248.3,3248.0,1.57305]
[1736848516851,3.2078,3248.3,3248.1,0.30794]
[1736848517356,0.30794,3248.2,3248.0,1.2651]
[1736848517557,3.2078,3248.3,3248.0,1.2651]
[1736848517854,3.64904,3249.1,3248.0,1.2651]
[1736848517855,4.5972,3249.1,3248.0,1.2651]
[1736848518055,3.2078,3249.5,3248.3,3.2078]
[1736848518258,3.2078,3249.5,3248.6,0.30789]
[1736848518259,0.30787,3248.9,3248.6,0.30789]
[1736848518456,3.2078,3249.5,3248.8,40.8]
[1736848519051,3.2078,3250.0,3248.8,44.0078]
[1736848519253,0.30781,3249.6,3248.9,1.2285]
[1736848519455,3.2078,3250.0,3249.2,0.30784]
[1736848519651,3.2078,3250.0,3248.9,1.2285]
[1736848519652,0.30783,3249.3,3248.9,1.2285]
[1736848519956,3.2078,3249.6,3248.8,44.0078]
[1736848520153,0.30787,3248.9,3248.8,40.8]
[1736848520845,0.30794,3248.2,3247.8,0.30797]
[1736848521049,0.30796,3248.0,3247.7,3.2078]
[1736848521258,0.30796,3248.0,3247.9,40.8]
[1736848521458,0.30795,3248.1,3247.9,40.8]
[1736848521658,0.30795,3248.0,3247.9,40.8]
[1736848521958,0.30795,3248.1,3247.9,40.8]
[1736848522252,0.30795,3248.0,3247.9,40.8]
[1736848522457,3.2078,3248.4,3247.9,40.8]
[1736848522756,0.30795,3248.0,3247.9,40.8]
[1736848523759,3.2078,3248.4,3247.9,40.8]
[1736848524060,0.30795,3248.1,3247.9,40.8]
[1736848524265,3.2078,3248.4,3247.9,40.8]
[1736848524854,0.30794,3248.2,3247.9,40.8]
[1736848525054,0.30795,3248.0,3247.9,40.8]
[1736848527252,3.51575,3248.0,3247.9,40.8]
[1736848529861,3.2078,3248.0,3247.9,40.8]
[1736848530055,3.2078,3248.0,3247.9,41.10796]
[1736848530262,4.543,3248.5,3247.9,40.8]
[1736848530463,3.2078,3248.5,3247.9,40.8]
[1736848530665,3.2078,3248.5,3248.3,0.30792]
[1736848530964,1.2205,3248.6,3247.9,40.8]
[1736848531164,0.30789,3248.7,3248.3,0.30792]
[1736848531470,3.2078,3248.9,3248.8,0.30788]
[1736848531959,1.3106,3249.6,3248.8,40.8]
[1736848532162,0.30782,3249.4,3248.8,40.8]
[1736848532353,1.3106,3249.6,3248.8,40.8]
[1736848532758,3.2078,3249.0,3248.8,40.8]
[1736848533060,0.30787,3248.9,3248.8,40.8]
[1736848534260,3.2078,3249.0,3248.3,0.30792]
[1736848534567,0.30789,3248.7,3248.3,0.30792]
[1736848534764,0.30789,3248.7,3248.4,40.8]
[1736848535067,0.30787,3248.9,3248.6,0.30789]
[1736848535565,3.2078,3249.4,3248.6,3.2078]
[1736848535763,0.30784,3249.2,3248.9,0.30786]
[1736848536363,0.30784,3249.2,3248.7,42.0935]
[1736848536558,0.30783,3249.3,3249.0,0.30786]
[1736848537163,0.30783,3249.3,3248.7,42.0935]
[1736848537364,0.30783,3249.3,3249.0,0.30786]
[1736848537562,0.30783,3249.3,3249.0,3.51566]
[1736848537759,1.3022,3249.5,3249.0,3.2078]
[1736848537960,6.56479552,3249.8,3249.0,3.2078]
[1736848537961,3.51559,3249.8,3249.5,0.3078]
[1736848538458,3.2078,3249.8,3249.0,3.2078]
[1736848538664,0.3078,3249.7,3249.6,40.8]
[1736848539070,6.12149552,3249.7,3249.6,40.8]
[1736848539771,0.30785,3249.1,3248.8,0.30788]
[1736848540360,0.30787,3248.9,3248.7,1.2935]
[1736848540568,0.30789,3248.7,3248.5,3.2078]
[1736848540764,0.30789,3248.7,3247.8,0.76991]
[1736848540765,0.3079,3248.6,3248.3,0.30792]
[1736848541463,3.2078,3248.9,3248.2,3.2078]
[1736848541659,0.30789,3248.7,3248.5,0.3079]
[1736848541868,2.02758,3249.3,3248.5,0.3079]
[1736848542074,0.30789,3248.7,3248.6,40.8]
[1736848542463,1.258,3249.3,3248.6,40.8]
[1736848542662,3.2078,3249.4,3248.6,40.8]
[1736848542864,0.30786,3249.0,3248.8,0.30787]
[1736848543059,0.30787,3248.9,3248.7,0.30788]
[1736848543269,3.35699552,3249.2,3248.6,44.0078]
[1736848543473,0.30789,3248.7,3248.6,44.0078]
[1736848543773,4.12660552,3249.2,3248.6,44.3157]
[1736848543973,0.30789,3248.7,3248.6,44.3157]
[1736848544174,0.30789,3248.7,3248.6,44.0078]
[1736848545073,0.30792,3248.3,3248.2,3.2078]
[1736848545577,0.30792,3248.3,3248.2,44.0078]
[1736848547967,0.30791,3248.5,3248.2,44.0078]
[1736848548178,2.8186,3248.6,3248.4,0.30791]
[1736848548377,2.5107,3248.6,3248.2,44.0078]
[1736848548677,0.30789,3248.7,3248.4,0.30791]
[1736848548979,0.30788,3248.8,3248.5,0.3079]
[1736848549166,0.30789,3248.7,3248.5,0.3079]
[1736848549364,4.96567,3248.9,3248.7,0.30789]
[1736848549571,4.6578,3248.9,3248.2,44.77763]
[1736848549774,0.30789,3248.7,3248.5,0.3079]
[1736848550071,0.30788,3248.8,3248.5,0.3079]
[1736848550275,4.6578,3248.9,3248.2,44.0078]
[1736848550467,0.30789,3248.7,3248.5,0.30791]
[1736848551865,0.30789,3248.7,3248.2,44.0078]
[1736848552074,3.2078,3248.9,3248.2,3.2078]
[1736848552374,3.2078,3248.9,3248.8,0.30788]
[1736848552570,3.2078,3248.9,3248.8,41.10788]
[1736848554071,3.51567,3248.9,3248.8,41.10788]
[1736848554570,0.30787,3248.9,3248.8,41.10788]
[1736848554771,2.4983,3249.2,3248.8,40.8]
[1736848554971,3.51567,3248.9,3248.8,40.8]
[1736848555170,0.30787,3248.9,3248.8,40.8]
[1736848555372,2.91404088,3249.1,3248.8,40.8]
[1736848555579,0.30785,3249.1,3249.0,0.30786]
[1736848555774,2.80614,3249.2,3249.0,0.30785]
[1736848555980,0.30785,3249.1,3248.9,0.30786]
[1736848556378,2.80615,3249.2,3248.8,40.8]
[1736848556779,2.80615,3249.2,3249.0,0.30785]
[1736848557973,2.80615,3249.2,3248.8,40.8]
[1736848558179,0.30785,3249.1,3248.9,0.30786]
[1736848558379,2.4983,3249.2,3248.8,40.8]
[1736848558581,2.4983,3249.2,3249.1,0.30785]
[1736848558775,0.3078,3249.6,3249.4,0.30781]
[1736848558976,3.2078,3249.7,3249.1,1.3135]
[1736848559174,0.30781,3249.5,3249.3,0.30782]
[1736848559576,0.30781,3249.5,3249.3,0.30783]
[1736848559780,3.2078,3249.7,3249.1,1.3135]
[1736848560080,0.30787,3248.9,3248.8,40.8]
[1736848560279,3.22191088,3248.9,3248.8,40.8]
[1736848560481,0.76974,3248.7,3248.1,3.2078]
[1736848560677,0.30793,3248.2,3248.1,3.2078]
[1736848561181,0.30793,3248.2,3247.4,0.308]
[1736848561182,0.30798,3247.7,3247.4,0.308]
[1736848561378,0.76987,3248.1,3247.5,40.8]
[1736848561379,3.2078,3247.8,3247.5,40.8]
[1736848561584,0.308,3247.6,3247.5,40.8]
[1736848563077,0.30806,3246.9,3246.8,3.2078]
[1736848563283,0.30809,3246.6,3246.3,3.2078]
[1736848563582,2.91404088,3246.6,3246.3,3.2078]
[1736848563780,3.2078,3246.9,3246.3,3.2078]
[1736848563981,0.30803,3247.2,3246.7,0.30807]
[1736848564175,4.19614088,3247.5,3246.8,3.2078]
[1736848564376,0.30805,3247.0,3246.5,0.30809]
[1736848564578,0.30809,3246.6,3246.4,40.8]
[1736848564778,7.39154088,3246.9,3246.4,40.8]
[1736848565175,3.2078,3246.9,3246.4,40.8]
[1736848565376,4.24634088,3247.2,3246.4,40.8]
[1736848565679,0.30805,3247.0,3246.6,0.30808]
[1736848565874,0.30805,3247.1,3246.4,44.0078]
[1736848566074,4.4775,3247.4,3246.4,44.77807]
[1736848566480,4.5401,3247.8,3246.8,3.2078]
[1736848566779,3.45759174,3248.2,3247.6,3.2078]
[1736848567077,0.24979174,3248.2,3248.1,3.51574]
[1736848567477,0.30786,3249.0,3248.1,3.51574]
[1736848567674,2.91404088,3249.2,3248.9,40.8]
[1736848568181,0.30784,3249.3,3248.9,44.0078]
[1736848568370,2.99884,3249.5,3248.9,44.0078]
[1736848568681,0.30782,3249.4,3249.1,0.30784]
[1736848568886,0.30782,3249.4,3249.2,0.30784]
[1736848569079,0.30783,3249.4,3249.1,0.30785]
[1736848569278,2.99884,3249.5,3248.9,44.0078]
[1736848569482,3.30665,3249.5,3249.2,0.30783]
[1736848570275,0.30782,3249.4,3248.9,44.0078]
[1736848570476,0.30782,3249.4,3249.1,0.30784]
[1736848570787,2.99884,3249.5,3248.9,44.0078]
[1736848570982,0.30786,3249.1,3248.9,44.0078]
[1736848571177,2.99884,3249.5,3248.9,44.0078]
[1736848571178,0.30786,3249.0,3248.9,44.0078]
[1736848571379,0.30786,3249.0,3248.9,40.8]
[1736848571680,3.2078,3249.0,3248.2,0.30793]
[1736848571881,0.30792,3248.4,3248.1,0.30794]
[1736848572072,1.244,3248.9,3248.4,0.30791]
[1736848572272,0.30788,3248.8,3248.4,0.30791]
[1736848572477,1.55187,3248.9,3248.5,0.3079]
[1736848572678,0.30788,3248.8,3248.4,0.30791]
[1736848572880,0.30788,3248.8,3248.5,0.30791]
[1736848573180,1.55187,3248.9,3248.5,0.30791]
[1736848573777,3.2078,3249.0,3248.9,0.30787]
[1736848573984,3.2078,3249.0,3248.3,0.76982]
[1736848573985,0.30782,3249.4,3249.0,0.30785]
[1736848574185,3.2078,3249.6,3248.9,0.30786]
[1736848574480,3.2078,3249.6,3248.4,3.2078]
[1736848574481,0.30785,3249.1,3248.7,0.30788]
[1736848574673,3.2078,3249.6,3248.5,0.76977]
[1736848574879,3.2078,3249.6,3249.3,0.30782]
[1736848575076,3.5156,3249.6,3249.2,0.30783]
[1736848575675,3.5156,3249.6,3249.1,0.30785]
[1736848575676,0.30782,3249.5,3249.1,0.30785]
[1736848575874,3.2078,3249.6,3248.8,3.2078]
[1736848576079,0.30785,3249.2,3248.8,0.30787]
[1736848576281,3.36463917,3249.5,3248.8,0.30787]
[1736848576588,0.30784,3249.2,3248.9,0.30787]
[1736848576790,0.30782,3249.4,3249.0,0.30785]
[1736848577083,3.36463917,3249.5,3248.4,0.76979]
[1736848577283,0.30782,3249.4,3249.0,0.30785]
[1736848577585,3.2078,3249.6,3249.1,40.8]
[1736848578089,0.30782,3249.5,3249.2,0.30784]
[1736848578383,13.2078,3250.0,3249.4,3.2078]
[1736848578590,10.0,3250.0,3249.9,0.30777]
[1736848579187,10.0,3250.0,3249.9,41.10777]
[1736848579584,10.0,3250.0,3249.9,40.8]
[1736848580083,10.0,3250.0,3249.9,41.10777]
[1736848580279,10.0,3250.0,3249.9,40.8]
[1736848580592,10.0,3250.0,3249.9,41.10777]
[1736848581587,7.9593,3250.0,3249.9,46.10777]
[1736848581778,3.1434,3250.0,3249.9,47.41567]
[1736848582981,3.1434,3250.0,3249.9,42.41567]
[1736848583183,3.1434,3250.0,3249.9,41.10777]
[1736848584592,3.45116,3250.0,3249.9,40.8]
[1736848584784,3.1434,3250.0,3249.0,1.43]
[1736848584986,0.30777,3249.9,3249.5,0.30781]
[1736848585193,3.91284,3250.0,3249.0,1.43]
[1736848585387,0.30784,3249.2,3249.1,41.10784]
[1736848585588,0.30783,3249.3,3249.2,0.30784]
[1736848585791,0.76952,3249.6,3248.9,3.2078]
[1736848585987,3.2078,3249.4,3248.5,3.2078]
[1736848586188,0.30784,3249.3,3249.2,41.10783]
[1736848586390,0.30784,3249.3,3249.2,40.8]
[1736848586790,0.30784,3249.3,3249.2,41.10784]
[1736848586990,0.30784,3249.3,3249.2,40.8]
[1736848587205,3.9412,3249.7,3248.9,3.2078]
[1736848587592,0.30782,3249.4,3249.3,0.30783]
[1736848587792,2.6304,3249.7,3248.9,3.2078]
[1736848587990,2.6304,3249.7,3248.8,0.7697]
[1736848587991,0.3078,3249.6,3249.5,0.30781]
[1736848588295,0.3078,3249.6,3249.5,40.8]
[1736848588894,3.5156,3249.6,3249.5,40.8]
[1736848589383,6.42900091,3249.6,3249.5,40.8]
[1736848590899,6.12120091,3249.6,3248.9,3.2078]
[1736848591196,1.2633,3249.5,3248.9,3.2078]
[1736848591386,0.30785,3249.2,3248.9,3.2078]
[1736848591590,1.2633,3249.5,3248.9,3.207]
[1736848591790,0.30786,3249.0,3248.9,3.207]
[1736848592088,1.2633,3249.5,3248.9,44.007]
[1736848592286,0.30781,3249.2,3248.9,44.007]
[1736848592496,2.91340091,3249.3,3248.9,44.007]
[1736848592685,0.30783,3249.0,3248.9,44.007]
[1736848592889,0.30782,3249.1,3248.9,44.007]
[1736848593289,2.91340091,3249.3,3248.9,44.007]
[1736848593487,0.30782,3249.1,3248.9,44.007]
[1736848593901,2.91340091,3249.3,3248.9,44.007]
[1736848594400,0.30779,3249.4,3249.0,0.30782]
[1736848594691,1.2633,3249.5,3248.9,44.007]
[1736848595091,3.2078,3249.6,3249.2,0.3078]
[1736848595294,0.30779,3249.5,3249.0,0.30783]
[1736848595496,3.51558,3249.6,3249.2,0.30781]
[1736848595793,0.30778,3249.5,3249.1,0.30781]
[1736848596000,3.51558,3249.6,3249.2,0.3078]
[1736848596199,3.2078,3249.6,3248.9,44.007]
[1736848596499,3.51558,3249.6,3248.9,44.007]
[1736848596707,3.2078,3249.6,3249.3,0.3078]
[1736848596896,3.2078,3249.6,3248.9,44.007]
[1736848597102,3.2078,3249.6,3248.9,3.207]
[1736848597299,3.1434,3250.0,3249.5,3.2078]
[1736848597503,3.1434,3250.0,3249.9,0.30774]
[1736848597697,3.1434,3250.0,3249.5,3.2078]
[1736848598199,0.30777,3249.6,3249.5,3.2078]
[1736848598400,2.91340091,3249.9,3249.5,3.2078]
[1736848598401,5.52940091,3249.9,3249.5,3.2078]
[1736848598603,4.25650091,3249.9,3249.6,40.8]
[1736848598789,1.3431,3249.9,3249.6,40.8]
[1736848599000,0.30775,3249.8,3249.6,40.8]
[1736848599700,3.1434,3250.0,3249.6,40.8]
[1736848599901,3.1434,3250.0,3249.9,0.30774]
[1736848601003,3.45114,3250.0,3249.7,0.30776]
[1736848601206,0.30776,3249.7,3249.6,40.8]
[1736848602604,0.30775,3249.8,3249.6,41.10777]
[1736848602909,0.30776,3249.8,3249.6,40.8]
[1736848603402,0.30776,3249.7,3249.6,40.8]
[1736848604104,1.3356,3249.9,3249.6,41.10777]
[1736848604305,3.1434,3250.0,3249.9,0.30774]
[1736848604611,3.1434,3250.0,3249.9,3.51554]
[1736848604804,3.1434,3250.0,3249.9,44.31554]
[1736848606204,3.1434,3250.0,3249.9,44.0078]
[1736848606410,3.1434,3250.0,3249.9,3.2078]
[1736848606411,3.45113,3250.0,3249.9,3.2078]
[1736848606605,3.45113,3250.0,3249.9,1.47536118]
[1736848606910,3.45113,3250.0,3249.9,42.27536118]
[1736848607605,3.1434,3250.0,3249.9,42.27536118]
[1736848607809,3.1434,3250.0,3249.9,42.58310118]
[1736848608005,3.2078,3251.9,3249.9,50.18876209]
[1736848608206,0.30758,3251.7,3251.5,0.30758]
[1736848608404,3.9149,3251.8,3251.0,0.7691]
[1736848608605,2.6717,3251.8,3251.7,0.30757]
[1736848608805,1.3338,3251.8,3251.7,0.30757]
[1736848609207,1.64136,3251.8,3251.7,40.8]
[1736848609613,0.30763,3251.1,3251.0,3.2078]
[1736848609914,2.91340091,3251.1,3250.6,3.2078]
[1736848610111,1.2751,3251.0,3250.6,3.2078]
[1736848610607,1.58275,3251.0,3250.6,3.51547]
[1736848611213,1.2751,3251.0,3250.6,1.1833]
[1736848611408,0.30769,3250.5,3250.1,0.30772]
[1736848611711,0.30767,3250.7,3250.3,0.3077]
[1736848611907,0.30768,3250.6,3250.3,0.3077]
[1736848612108,3.2078,3250.4,3250.1,0.30772]
[1736848612307,3.2078,3250.4,3249.7,1.2632]
[1736848612513,0.30772,3250.1,3249.8,0.30774]
[1736848612716,3.2078,3250.4,3249.9,0.30774]
[1736848612717,0.30772,3250.2,3249.9,0.30774]
[1736848613010,3.2078,3250.4,3249.2,3.97732]
[1736848613211,0.30772,3250.2,3249.3,0.76949]
[1736848613415,0.30772,3250.2,3249.9,0.30774]
[1736848613617,0.30772,3250.2,3249.5,0.76946]
[1736848613819,0.30772,3250.2,3249.9,0.30774]
[1736848614008,3.2078,3250.4,3249.5,0.76946]
[1736848614316,3.2078,3250.4,3249.4,0.76948]
[1736848614717,3.51554,3250.0,3249.7,0.30775]
[1736848614912,3.2078,3250.0,3249.8,0.30774]
[1736848615112,3.2078,3250.0,3249.9,40.8]
[1736848615313,3.51553,3250.0,3249.9,40.8]
[1736848617920,3.2078,3250.0,3249.9,40.8]
[1736848618221,3.51553,3250.0,3249.9,40.8]
[1736848619215,3.2078,3250.0,3249.9,41.10774]
[1736848619417,3.2078,3250.5,3249.9,40.8]
[1736848619624,3.51549,3250.5,3250.2,0.30771]
[1736848620018,3.2078,3250.5,3249.9,40.8]
[1736848620316,1.405,3250.8,3249.9,40.8]
[1736848620317,0.30773,3250.0,3249.9,40.8]
[1736848620512,3.2078,3250.1,3250.0,0.30773]
[1736848620714,0.30771,3250.3,3250.0,0.30773]
[1736848620915,3.2078,3250.5,3249.9,40.8]
[1736848621125,0.30773,3250.0,3249.9,40.8]
[1736848621321,3.2078,3250.1,3249.9,41.10774]
[1736848621619,3.2078,3250.1,3249.9,40.8]
[1736848622025,3.2078,3250.1,3250.0,0.30773]
[1736848624524,3.51553,3250.1,3249.9,40.8]
[1736848624735,0.30773,3250.0,3249.9,40.8]
[1736848625328,3.51553,3250.1,3249.9,41.10774]
[1736848625528,0.30773,3250.1,3249.9,41.10774]
[1736848625729,0.30773,3250.1,3249.9,40.8]
[1736848626027,3.51552,3250.1,3249.9,41.10774]
[1736848626222,0.30773,3250.0,3249.9,40.8]
[1736848626430,3.51553,3250.1,3249.9,41.10774]
[1736848626817,3.2078,3250.1,3250.0,0.30773]
[1736848627025,1.3444,3250.2,3250.1,0.30772]
[1736848627229,0.3077,3250.4,3249.9,40.8]
[1736848627431,0.3077,3250.4,3250.2,0.30771]
[1736848627726,3.2078,3250.5,3250.1,0.30772]
[1736848627921,0.30771,3250.3,3250.1,0.30772]
[1736848628124,3.2078,3250.5,3249.9,40.8]
[1736848628331,0.30771,3250.3,3250.1,0.30772]
[1736848628523,0.30771,3250.3,3249.9,40.8]
[1736848628723,0.30772,3250.2,3249.9,40.8]
[1736848628918,0.30772,3250.2,3250.1,0.30772]
[1736848629129,3.2078,3250.5,3250.0,0.30773]
[1736848629324,3.2078,3250.5,3250.2,0.30771]
[1736848629531,0.3077,3250.4,3250.3,0.3077]
[1736848629726,3.2078,3250.5,3249.9,40.8]